bitfinex/quotes_SOLUSD_20260201
["timestamp","ask_amount","ask_price","bid_price","bid_amount"]
[1769957058603,0.1,102.99,102.92,4.26797217]
[1769957059094,2.89738997,103.03,102.95,4.26797217]
[1769957059297,2.89738997,103.03,102.96,4.26797217]
[1769957059601,2.89738997,103.03,102.94,0.28432314]
[1769957059602,2.89738997,103.03,102.94,4.26797217]
[1769957059995,2.89738997,103.03,102.95,13.9814253]
[1769957060400,4.27424685,103.02,102.93,4.26797217]
[1769957060618,38.24608615,103.03,102.92,9.71621453]
[1769957060619,4.27424685,103.0,102.92,9.71621453]
[1769957060916,4.27424685,102.99,102.89,31.26797217]
[1769957061102,4.27424685,102.94,102.88,9.71931114]
[1769957061293,4.27424685,102.94,102.89,9.71872541]
[1769957061605,4.27424685,102.94,102.87,13.98819738]
[1769957061805,4.27424685,102.94,102.88,9.71917395]
[1769957062107,9.71534052,102.93,102.87,13.98867915]
[1769957062301,4.27424685,102.95,102.88,4.26797217]
[1769957062503,13.98709666,102.96,102.88,4.26797217]
[1769957062891,13.98518315,102.98,102.9,4.26797217]
[1769957063494,4.27424685,102.98,102.91,4.26797217]
[1769957063708,9.71000199,102.99,102.91,4.26797217]
[1769957064012,13.98424884,102.99,102.92,13.98425666]
[1769957064412,13.98424884,102.99,102.93,4.26797217]
[1769957064597,9.70812919,103.01,102.93,4.26797217]
[1769957065305,4.27424685,103.0,102.93,4.26797217]
[1769957065914,13.98008092,103.04,102.95,33.99708596]
[1769957066102,4.27424685,103.03,102.96,4.26797217]
[1769957066700,4.27527085,103.01,102.93,9.71504479]
[1769957066901,4.27424685,103.0,102.94,9.71425874]
[1769957067214,4.27424685,102.98,102.92,9.71540318]
[1769957067406,4.27424685,102.98,102.92,4.26797217]
[1769957067813,4.27424685,102.98,102.92,13.98399411]
[1769957068010,9.71156647,102.97,102.91,4.26797217]
[1769957068209,38.2647295,102.97,102.91,4.26797217]
[1769957068409,4.27424685,102.96,102.89,13.98708967]
[1769957068721,4.27424685,102.96,102.89,4.26797217]
[1769957068917,4.27424685,102.96,102.88,9.71997981]
[1769957069218,4.27424685,102.96,102.89,4.26797217]
[1769957069407,8.5495177,102.94,102.87,4.26797217]
[1769957069592,4.27424685,102.93,102.87,4.26797217]
[1769957069791,4.27424685,102.93,102.87,13.98861151]
[1769957069991,13.99053134,102.92,102.86,9.72101842]
[1769957070199,4.27424685,102.9,102.84,26.98]
[1769957070811,4.27424685,102.9,102.81,13.99398842]
[1769957071017,4.27424685,102.9,102.82,4.26797217]
[1769957071199,4.27424685,102.9,102.84,9.72371044]
[1769957071515,4.27424685,102.9,102.84,9.72348728]
[1769957071722,4.27424685,102.9,102.8,4.26797217]
[1769957071923,38.28124257,102.92,102.82,4.27527085]
[1769957072127,4.27424685,102.88,102.78,48.64502033]
[1769957072619,4.27424685,102.88,102.8,24.31770322]
[1769957073122,4.27424685,102.88,102.82,9.72541684]
[1769957073308,4.27424685,102.88,102.81,9.72639933]
[1769957073497,82.58841818,102.92,102.78,48.64502033]
[1769957073498,4.27424685,102.87,102.78,24.32235532]
[1769957073700,4.27424685,102.87,102.8,9.72702739]
[1769957074108,4.27424685,102.85,102.79,4.26797217]
[1769957074309,4.27424685,102.85,102.78,9.72951936]
[1769957075205,4.27424685,102.83,102.78,9.72951936]
[1769957075401,4.27424685,102.83,102.78,13.99749153]
[1769957075607,13.99741913,102.85,102.79,4.26797217]
[1769957076099,13.9964073,102.86,102.79,4.26797217]
[1769957076295,4.27424685,102.85,102.79,4.26797217]
[1769957076507,4.27424685,102.85,102.78,9.72951936]
[1769957076701,4.27424685,102.85,102.77,13.99816922]
[1769957076907,4.27424685,102.82,102.77,13.99816922]
[1769957077123,4.27424685,102.82,102.76,9.93112769]
[1769957077325,4.08330266,102.81,102.77,9.73046608]
[1769957077622,4.08330266,102.81,102.76,9.9311092]
[1769957078016,4.08330266,102.81,102.76,9.93124395]
[1769957078312,4.08330266,102.81,102.76,0.2]
[1769957078816,4.08330266,102.8,102.72,13.85095823]
[1769957079217,4.08330266,102.8,102.72,4.11610029]
[1769957079419,9.731413,102.76,102.71,9.93607281]
[1769957079725,4.08330266,102.75,102.71,0.2]
[1769957080438,13.81471566,102.76,102.71,9.93593659]
[1769957080607,4.08330266,102.75,102.71,0.2]
[1769957081124,4.08330266,102.75,102.68,40.85474518]
[1769957081508,4.08330266,102.73,102.66,4.11610029]
[1769957081703,4.08330266,102.73,102.67,9.73937912]
[1769957082009,4.08330266,102.73,102.66,13.85660357]
[1769957082318,4.08330266,102.73,102.66,4.11610029]
[1769957082628,18.09188088,102.74,102.68,13.85503544]
[1769957083123,18.09188088,102.74,102.69,4.11610029]
[1769957083124,13.81661003,102.74,102.69,4.11610029]
[1769957083314,13.81661003,102.74,102.68,13.85503544]
[1769957083518,38.14987847,102.74,102.68,13.85503544]
[1769957083721,13.81661003,102.74,102.68,13.85503544]
[1769957084726,9.73271642,102.75,102.69,4.42564166]
[1769957085025,4.35255181,102.74,102.69,4.42564166]
[1769957085728,14.0864399,102.74,102.69,14.16325997]
[1769957086112,4.35255181,102.73,102.65,28.77887036]
[1769957086420,4.35255181,102.73,102.65,4.42564166]
[1769957086628,4.35255181,102.73,102.67,9.73913034]
[1769957086924,4.35255181,102.69,102.64,14.16842111]
[1769957087130,4.35255181,102.69,102.62,24.36082497]
[1769957087316,4.35255181,102.69,102.6,4.42564166]
[1769957087504,5.36086188,102.73,102.65,38.52208587]
[1769957087505,4.35255181,102.71,102.65,38.52208587]
[1769957087712,4.35255181,102.71,102.64,14.16803134]
[1769957087713,4.35255181,102.7,102.64,14.16803134]
[1769957088011,4.35255181,102.67,102.61,14.17053912]
[1769957088325,4.35255181,102.66,102.59,4.42564166]
[1769957088533,4.35255181,102.66,102.59,14.172774]
[1769957089610,4.35255181,102.64,102.58,27.02]
[1769957089939,4.35255181,102.64,102.59,14.17312434]
[1769957090723,4.35255181,102.64,102.58,41.19377431]
[1769957091028,4.35255181,102.61,102.5,4.42564166]
[1769957091229,4.35255181,102.61,102.55,4.42564166]
[1769957091410,4.35255181,102.63,102.58,9.7483923]
[1769957091606,9.74468914,102.62,102.58,14.17403396]
[1769957091940,8.62782266,102.59,102.54,4.42564166]
[1769957092226,4.35255181,102.59,102.53,14.17871261]
[1769957092423,4.35255181,102.59,102.53,4.42564166]
[1769957092721,4.35255181,102.58,102.53,4.42564166]
[1769957093416,4.35255181,102.58,102.51,14.18067545]
[1769957093614,9.7494394,102.57,102.52,14.17960653]
[1769957093812,9.7494394,102.57,102.52,4.42564166]
[1769957094018,14.10199121,102.57,102.52,4.42564166]
[1769957094216,14.10199121,102.57,102.52,14.17979197]
[1769957094525,14.10131122,102.58,102.52,14.17979197]
[1769957095107,4.35255181,102.6,102.53,4.42564166]
[1769957095422,4.35255181,102.59,102.53,4.42564166]
[1769957095625,9.74848898,102.58,102.53,14.17887685]
[1769957095824,9.74848898,102.58,102.53,4.42564166]
[1769957096128,14.10048681,102.59,102.53,14.17874398]
[1769957096309,14.10048681,102.59,102.53,38.56185136]
[1769957097121,14.10048681,102.59,102.54,4.42564166]
[1769957097426,4.35255181,102.6,102.54,4.42564166]
[1769957097634,14.10009055,102.59,102.54,14.17779436]
[1769957098016,38.46893741,102.59,102.53,14.17862951]
[1769957098217,14.10009055,102.59,102.54,9.75217738]
[1769957098527,14.10009055,102.59,102.53,14.17804813]
[1769957098731,4.35255181,102.57,102.45,4.42564166]
[1769957098927,4.35255181,102.57,102.43,4.42564166]
[1769957098928,4.35255181,102.49,102.43,4.42564166]
[1769957099435,4.35255181,102.53,102.43,4.42564166]
[1769957099636,4.35255181,102.53,102.45,4.42564166]
[1769957099931,4.27527085,102.54,102.45,4.42564166]
[1769957099932,4.35255181,102.51,102.45,14.18628623]
[1769957100313,4.35255181,102.51,102.46,4.42564166]
[1769957100512,4.27527085,102.54,102.46,4.42564166]
[1769957100513,9.75367287,102.53,102.46,4.42564166]
[1769957100711,4.35255181,102.52,102.46,4.42564166]
[1769957101240,9.75367287,102.53,102.46,4.42564166]
[1769957101635,4.35255181,102.64,102.49,4.7099648]
[1769957101828,4.35255181,102.63,102.52,4.42564166]
[1769957102138,3.35255181,102.63,102.52,4.42564166]
[1769957102333,82.81371783,102.64,102.52,4.42564166]
[1769957102729,34.09976616,102.64,102.54,4.42564166]
[1769957102930,36.18981873,102.79,102.57,4.42564166]
[1769957102931,9.7418412,102.65,102.57,4.42564166]
[1769957103237,9.74113598,102.66,102.59,4.42564166]
[1769957103817,28.62750151,102.66,102.59,4.42564166]
[1769957104014,24.35223066,102.66,102.59,31.50564166]
[1769957104241,4.35255181,102.65,102.57,4.42564166]
[1769957104442,4.35255181,102.62,102.56,9.74977246]
[1769957104937,4.35255181,102.62,102.53,4.42564166]
[1769957104938,4.35255181,102.61,102.53,4.42564166]
[1769957105118,4.35255181,102.6,102.53,4.42564166]
[1769957105323,4.35255181,102.6,102.54,9.75170159]
[1769957105527,4.35255181,102.6,102.55,9.75105305]
[1769957106039,4.35255181,102.66,102.57,4.42564166]
[1769957106254,4.35255181,102.63,102.56,27.08]
[1769957106536,4.35255181,102.63,102.57,4.42564166]
[1769957106926,4.35255181,102.65,102.57,4.42564166]
[1769957107321,13.59249531,102.67,102.6,4.19632766]
[1769957107923,4.34749783,102.66,102.6,4.19632766]
[1769957108139,4.34749783,102.66,102.6,13.94290054]
[1769957108335,4.34749783,102.66,102.61,4.19632766]
[1769957108945,4.34749783,102.67,102.61,4.19632766]
[1769957109542,9.73899493,102.68,102.61,4.19632766]
[1769957109731,38.43098127,102.69,102.61,4.19632766]
[1769957109929,14.08699371,102.68,102.63,4.19632766]
[1769957110124,14.08651889,102.68,102.63,4.19632766]
[1769957110847,4.34749783,102.67,102.61,13.94155983]
[1769957111432,4.34749783,102.67,102.62,4.19632766]
[1769957111631,14.08651889,102.68,102.62,4.19632766]
[1769957112142,4.34749783,102.68,102.63,13.9400673]
[1769957112348,9.73809493,102.69,102.64,4.19632766]
[1769957112544,4.34749783,102.72,102.64,4.19632766]
[1769957112746,4.34749783,102.73,102.64,4.19632766]
[1769957112953,14.08210655,102.73,102.64,4.19632766]
[1769957113146,14.08210655,102.73,102.63,38.66268274]
[1769957113147,14.08025252,102.75,102.67,4.19632766]
[1769957113347,14.08025252,102.75,102.69,4.19632766]
[1769957113535,14.08025252,102.75,102.68,27.06]
[1769957113536,4.34749783,102.74,102.68,27.06]
[1769957113738,9.731413,102.76,102.69,4.19632766]
[1769957114033,14.07807312,102.77,102.69,4.19632766]
[1769957114228,14.07647049,102.79,102.71,4.19632766]
[1769957114424,4.34749783,102.83,102.74,4.19632766]
[1769957114643,14.07290659,102.83,102.76,4.19632766]
[1769957114844,4.34749783,102.83,102.76,4.19632766]
[1769957115230,14.07231208,102.83,102.76,4.19632766]
[1769957115435,9.72289742,102.85,102.77,4.19632766]
[1769957115631,38.3776388,102.85,102.77,4.19632766]
[1769957115848,4.34749783,102.84,102.77,4.19632766]
[1769957116147,4.34749783,102.83,102.75,31.25632766]
[1769957116354,4.34749783,102.81,102.75,13.92842836]
[1769957116756,34.04007002,102.82,102.75,13.92842836]
[1769957116757,14.07257017,102.83,102.76,4.19632766]
[1769957117149,4.34749783,102.82,102.76,4.19632766]
[1769957117546,4.34749783,102.82,102.73,36.79365163]
[1769957117850,4.34749783,102.82,102.73,27.06]
[1769957118150,4.34749783,102.79,102.73,27.06]
[1769957118348,4.34749783,102.72,102.65,4.19632766]
[1769957118555,4.13489476,102.72,102.65,4.19632766]
[1769957118768,4.13489476,102.72,102.66,4.19632766]
[1769957118950,4.27527085,102.74,102.66,4.19632766]
[1769957119332,4.27527085,102.77,102.66,4.19632766]
[1769957120256,9.731413,102.76,102.68,4.19632766]
[1769957120847,14.07447244,102.81,102.71,4.19632766]
[1769957121049,4.34749783,102.81,102.73,4.19632766]
[1769957121349,14.07134069,102.84,102.75,4.19632766]
[1769957121543,0.1,102.83,102.77,4.19632766]
[1769957121745,4.44749783,102.83,102.77,4.19632766]
[1769957121943,4.44749783,102.83,102.76,27.04]
[1769957122137,4.34749783,102.81,102.73,4.19632766]
[1769957122340,4.34749783,102.79,102.73,4.19632766]
[1769957122551,4.34749783,102.79,102.72,9.73463054]
[1769957122855,4.34749783,102.79,102.73,34.06943976]
[1769957123041,14.07512428,102.8,102.74,4.19632766]
[1769957123246,38.39419042,102.8,102.74,4.19632766]
[1769957123446,4.27527085,102.82,102.74,4.19632766]
[1769957123447,9.72707848,102.81,102.74,4.19632766]
[1769957123643,0.1,102.83,102.76,4.19632766]
[1769957123957,9.82505633,102.83,102.77,4.19632766]
[1769957124258,14.07417811,102.81,102.75,4.19632766]
[1769957124437,4.34749783,102.8,102.75,13.92852267]
[1769957124637,4.34749783,102.8,102.73,31.23632766]
[1769957124844,4.34749783,102.8,102.73,27.04]
[1769957125155,4.34749783,102.77,102.7,9.73694906]
[1769957125347,4.34749783,102.77,102.71,9.7360622]
[1769957125550,4.34749783,102.76,102.7,9.73679369]
[1769957125751,4.34749783,102.76,102.69,13.93430306]
[1769957125938,4.34749783,102.76,102.73,9.73399801]
[1769957126143,4.34749783,102.76,102.7,4.19632766]
[1769957126453,4.34749783,102.76,102.7,13.93307672]
[1769957126454,14.07911183,102.76,102.7,13.93307672]
[1769957126636,4.27527085,102.8,102.71,4.19632766]
[1769957126840,4.34749783,102.82,102.75,4.19632766]
[1769957127162,4.34749783,102.81,102.72,4.19632766]
[1769957127343,4.34749783,102.79,102.7,38.27582258]
[1769957128046,4.34749783,102.79,102.71,4.19632766]
[1769957128351,4.34749783,102.77,102.72,9.73520249]
[1769957128839,4.34749783,102.77,102.71,9.73573445]
[1769957129042,4.34749783,102.77,102.71,38.27243792]
[1769957129551,4.34749783,102.77,102.71,13.93206211]
[1769957130054,4.34749783,102.79,102.72,4.19632766]
[1769957130361,14.07617774,102.79,102.73,9.73425484]
[1769957130757,4.34749783,102.79,102.73,38.2662196]
[1769957131059,4.34749783,102.79,102.74,4.19632766]
[1769957131657,4.34749783,102.77,102.65,4.19632766]
[1769957131857,4.34749783,102.74,102.68,9.73846096]
[1769957132069,4.34749783,102.74,102.7,9.73703261]
[1769957132246,4.34749783,102.74,102.71,9.73592575]
[1769957132447,4.34749783,102.74,102.69,34.0831629]
[1769957132646,28.66982962,102.79,102.7,4.19632766]
[1769957132858,9.73009344,102.78,102.7,4.19632766]
[1769957133262,4.34749783,102.77,102.69,9.73804654]
[1769957133653,4.34749783,102.77,102.7,4.19632766]
[1769957134250,5.36086188,102.8,102.7,4.19632766]
[1769957134251,14.07646458,102.79,102.7,4.19632766]
[1769957134458,14.07646458,102.79,102.72,4.19632766]
[1769957134963,14.07646458,102.79,102.71,34.07652613]
[1769957134964,4.34749783,102.78,102.71,34.07652613]
[1769957135164,4.34749783,102.78,102.71,38.27285379]
[1769957135344,4.34749783,102.78,102.72,4.19632766]
[1769957136759,4.34749783,102.78,102.73,34.06989194]
[1769957136951,14.07555149,102.8,102.73,34.06989194]
[1769957137157,0.1,102.83,102.76,4.27527085]
[1769957137348,0.1,102.83,102.77,4.19632766]
[1769957138370,48.59704289,102.89,102.77,4.05430472]
[1769957138371,9.7200622,102.88,102.77,4.05430472]
[1769957138571,9.7200622,102.88,102.8,4.05430472]
[1769957138863,38.29649798,102.88,102.78,4.05430472]
[1769957139066,113.93680902,102.88,102.79,9.72806342]
[1769957139365,4.25122736,102.86,102.78,13.78348343]
[1769957139955,4.25122736,102.86,102.78,28.37734826]
[1769957140150,4.25122736,102.86,102.8,9.72762015]
[1769957140852,4.25122736,102.84,102.79,9.72857281]
[1769957141053,4.25122736,102.84,102.78,9.7291006]
[1769957141279,4.25122736,102.84,102.77,9.73007981]
[1769957141459,4.25122736,102.84,102.78,9.72936652]
[1769957141859,9.72289742,102.85,102.79,4.05430472]
[1769957142050,13.97412478,102.85,102.79,4.05430472]
[1769957142253,4.25122736,102.84,102.79,4.05430472]
[1769957142755,9.72289742,102.85,102.79,4.05430472]
[1769957143155,9.72289742,102.85,102.8,9.72762645]
[1769957143654,34.03014097,102.85,102.79,4.05430472]
[1769957143855,4.25122736,102.84,102.79,13.78280021]
[1769957145168,13.97574122,102.84,102.77,4.4722655]
[1769957146068,9.72332803,102.85,102.77,4.4722655]
[1769957146860,4.23491147,102.84,102.77,4.4722655]
[1769957147474,9.7222491,102.86,102.79,4.4722655]
[1769957148366,4.23491147,102.85,102.78,9.72951936]
[1769957148667,4.23491147,102.85,102.77,14.20226147]
[1769957148868,4.23491147,102.85,102.78,4.4722655]
[1769957149262,9.72321775,102.85,102.8,4.4722655]
[1769957149461,9.72243091,102.86,102.8,4.4722655]
[1769957149862,13.95734238,102.86,102.8,4.4722655]
[1769957150270,38.26222279,102.86,102.8,4.4722655]
[1769957150660,38.26222279,102.86,102.81,4.4722655]
[1769957150974,34.02731132,102.86,102.81,4.4722655]
[1769957151157,34.02731132,102.86,102.8,4.4722655]
[1769957151474,34.02731132,102.86,102.81,4.4722655]
[1769957151664,4.23491147,102.85,102.8,4.4722655]
[1769957151859,4.23491147,102.85,102.78,24.32311715]
[1769957152065,4.23491147,102.85,102.78,14.20134502]
[1769957152273,4.23491147,102.85,102.78,4.4722655]
[1769957152783,38.27829246,102.81,102.76,14.20339319]
[1769957152980,13.96159175,102.81,102.76,14.20339319]
[1769957153280,4.23491147,102.8,102.74,4.4722655]
[1769957153795,4.23491147,102.77,102.71,9.73549718]
[1769957153969,4.23491147,102.77,102.71,9.73579606]
[1769957154168,4.23491147,102.77,102.72,9.73495139]
[1769957154477,4.23491147,102.77,102.71,9.7361448]
[1769957154682,34.0599455,102.76,102.7,14.20880115]
[1769957154880,34.0599455,102.76,102.7,4.4722655]
[1769957155090,4.23491147,102.75,102.7,14.20933663]
[1769957155278,13.96632447,102.76,102.71,4.4722655]
[1769957155481,4.23491147,102.75,102.67,4.4722655]
[1769957155678,4.23491147,102.75,102.68,14.21069983]
[1769957155879,4.23491147,102.75,102.68,4.4722655]
[1769957156482,4.23491147,102.75,102.68,14.21125938]
[1769957156682,38.30148728,102.74,102.68,14.21125938]
[1769957156973,4.23491147,102.73,102.66,14.41261562]
[1769957157179,4.23491147,102.73,102.66,0.2]
[1769957157587,4.23491147,102.73,102.66,14.41273223]
[1769957157790,4.23491147,102.73,102.66,4.6722655]
[1769957157986,4.23491147,102.71,102.66,0.2]
[1769957158888,9.73709834,102.7,102.66,0.2]
[1769957159073,9.73709834,102.7,102.66,4.6722655]
[1769957159586,9.73652479,102.71,102.67,4.4722655]
[1769957159785,9.73652479,102.71,102.66,9.94044901]
[1769957159976,9.73652479,102.71,102.66,4.6722655]
[1769957160178,34.0769006,102.71,102.66,4.6722655]
[1769957160383,34.0769006,102.71,102.66,14.41311624]
[1769957160578,9.73548975,102.72,102.67,4.4722655]
[1769957160783,9.73548975,102.72,102.67,14.21140938]
[1769957160985,38.30840745,102.72,102.67,4.4722655]
[1769957161692,38.30840745,102.72,102.66,0.2]
[1769957161994,34.07349598,102.72,102.67,4.4722655]
[1769957162200,38.30840745,102.72,102.67,4.4722655]
[1769957162382,38.30840745,102.72,102.61,14.21706599]
[1769957162383,4.23491147,102.69,102.61,14.21706599]
[1769957162890,5.36086188,102.7,102.59,4.4722655]
[1769957162891,4.23491147,102.67,102.59,4.4722655]
[1769957163077,4.23491147,102.64,102.59,4.4722655]
[1769957163484,4.23491147,102.64,102.57,14.22148946]
[1769957163882,4.23491147,102.64,102.59,4.4722655]
[1769957164088,4.23491147,102.64,102.57,4.4722655]
[1769957164595,5.36086188,102.63,102.55,4.4722655]
[1769957164776,4.23491147,102.6,102.53,4.4722655]
[1769957164984,4.23491147,102.6,102.53,14.22547608]
[1769957165195,9.74563882,102.61,102.55,9.75126841]
[1769957165403,9.74563882,102.61,102.56,4.4722655]
[1769957166108,4.23491147,102.6,102.54,4.4722655]
[1769957166694,4.23491147,102.6,102.54,9.75226597]
[1769957166895,13.98245021,102.59,102.53,14.22514911]
[1769957167100,13.98245021,102.59,102.53,4.4722655]
[1769957167298,4.23491147,102.58,102.53,4.4722655]
[1769957167496,34.1163856,102.59,102.53,14.2253756]
[1769957167682,38.46508338,102.59,102.53,14.2253756]
[1769957167883,4.34869778,102.58,102.52,9.75383603]
[1769957168083,4.34869778,102.58,102.53,9.7526827]
[1769957168288,4.34869778,102.58,102.52,13.85671359]
[1769957168581,4.34869778,102.58,102.51,9.75482776]
[1769957168781,4.34869778,102.56,102.5,4.10292837]
[1769957168981,4.34869778,102.55,102.49,0.2]
[1769957169182,4.34869778,102.55,102.49,14.05957386]
[1769957169402,27.04,102.56,102.5,9.75575404]
[1769957169403,4.34869778,102.56,102.5,9.75575404]
[1769957169599,31.40869778,102.56,102.49,4.30292837]
[1769957169901,4.34869778,102.52,102.49,1e-08]
[1769957170883,9.75514583,102.51,102.49,1e-08]
[1769957171887,14.10317346,102.52,102.49,1e-08]
[1769957172094,9.75357061,102.53,102.49,4.10292838]
[1769957172292,9.75229178,102.54,102.49,4.10292838]
[1769957172497,4.34869778,102.53,102.49,1e-08]
[1769957172993,9.7541943,102.52,102.49,1e-08]
[1769957174004,14.10098956,102.54,102.49,1e-08]
[1769957174306,4.34869778,102.53,102.49,1e-08]
[1769957175203,34.13968005,102.52,102.49,1e-08]
[1769957176895,4.34869778,102.51,102.43,9.7624586]
[1769957177093,4.29869778,102.51,102.45,4.10292837]
[1769957177306,9.75609756,102.5,102.46,4.10292837]
[1769957178909,5.36086188,102.54,102.46,4.10292837]
[1769957179209,4.34869778,102.52,102.46,4.10292837]
[1769957179617,4.34869778,102.52,102.46,13.86279537]
[1769957179908,4.34869778,102.52,102.46,4.10292837]
[1769957180296,4.34869778,102.54,102.47,4.10292837]
[1769957181113,9.75324295,102.53,102.48,4.10292837]
[1769957181319,38.48504811,102.53,102.48,4.10292837]
[1769957182609,4.34869778,102.52,102.46,4.10292837]
[1769957182814,4.34869778,102.52,102.44,9.76131063]
[1769957182815,4.34869778,102.52,102.44,4.10292837]
[1769957183011,4.34869778,102.49,102.44,4.10292837]
[1769957183212,34.15300546,102.48,102.44,4.10292837]
[1769957183691,34.15300546,102.48,102.42,9.96327549]
[1769957183692,38.50170324,102.48,102.42,4.30292837]
[1769957183898,38.50170324,102.48,102.42,14.06662756]
[1769957184096,38.50170324,102.48,102.42,4.30292837]
[1769957184898,38.50170324,102.48,102.42,14.0666047]
[1769957185100,38.50170324,102.48,102.43,4.10292837]
[1769957186515,4.34869778,102.47,102.42,0.2]
[1769957187013,4.34869778,102.47,102.32,27.1]
[1769957187014,4.34869778,102.44,102.32,27.1]
[1769957187214,4.34869778,102.42,102.35,4.10292837]
[1769957187718,4.34869778,102.41,102.33,4.10292837]
[1769957187908,4.34869778,102.41,102.33,13.87434684]
[1769957188109,4.34869778,102.41,102.33,4.10292837]
[1769957188413,4.34869778,102.41,102.32,4.10292837]
[1769957188414,4.34869778,102.39,102.32,4.10292837]
[1769957188628,4.34869778,102.36,102.3,4.10292837]
[1769957188797,4.34869778,102.39,102.33,9.77187162]
[1769957189194,4.34869778,102.39,102.32,4.10292837]
[1769957189413,4.34869778,102.39,102.33,9.77227459]
[1769957189602,4.34869778,102.39,102.33,13.87520296]
[1769957189807,4.34869778,102.39,102.34,4.10292837]
[1769957190325,4.34869778,102.39,102.34,13.87405334]
[1769957190824,4.34869778,102.41,102.35,4.10292837]
[1769957191130,4.34869778,102.4,102.35,4.10292837]
[1769957191512,4.34869778,102.4,102.31,4.10292837]
[1769957192108,4.34869778,102.4,102.33,13.87489503]
[1769957192416,9.76657876,102.39,102.34,9.77122407]
[1769957192618,4.34869778,102.38,102.33,4.10292837]
[1769957192812,4.34869778,102.38,102.31,13.87658188]
[1769957193217,4.34869778,102.38,102.32,9.77313468]
[1769957193405,4.34869778,102.38,102.33,9.77213187]
[1769957193605,4.34869778,102.38,102.32,13.87601507]
[1769957194020,4.34869778,102.38,102.32,4.10292837]
[1769957194323,38.53840179,102.37,102.32,4.10292837]
[1769957194509,4.34869778,102.36,102.3,13.87770575]
[1769957194706,4.34869778,102.36,102.3,4.10292837]
[1769957195013,4.34869778,102.36,102.29,4.10292837]
[1769957195224,4.34869778,102.36,102.3,4.10292837]
[1769957195621,4.34869778,102.36,102.31,13.87662273]
[1769957195822,9.76848686,102.37,102.32,13.87614499]
[1769957196131,14.11718464,102.37,102.32,4.10292837]
[1769957196322,14.11880864,102.36,102.31,13.87658429]
[1769957196513,14.11880864,102.36,102.31,4.10292837]
[1769957196514,38.5424116,102.36,102.31,4.10292837]
[1769957196914,4.34869778,102.35,102.29,4.10292837]
[1769957197416,4.34869778,102.35,102.29,13.87862042]
[1769957197724,4.29343956,102.34,102.28,0.3182111]
[1769957198315,4.29343956,102.32,102.25,4.32263362]
[1769957198627,4.29343956,102.3,102.23,4.42263362]
[1769957198814,34.20975465,102.31,102.26,4.32263362]
[1769957199124,14.06765517,102.31,102.26,4.32263362]
[1769957200631,14.06765517,102.31,102.26,14.10146335]
[1769957200926,14.06765517,102.31,102.23,4.37527085]
[1769957200927,4.29343956,102.27,102.23,0.1]
[1769957201134,4.29343956,102.27,102.2,4.32263362]
[1769957201135,4.29343956,102.26,102.2,9.7846808]
[1769957201312,4.29343956,102.26,102.21,9.78324732]
[1769957201624,4.29343956,102.29,102.23,9.78121277]
[1769957202117,4.29343956,102.29,102.24,9.7807946]
[1769957202432,9.77708251,102.28,102.23,14.10406594]
[1769957202620,14.07052207,102.28,102.23,14.10406594]
[1769957203016,9.77654062,102.29,102.24,4.32263362]
[1769957203412,9.77559765,102.3,102.24,4.32263362]
[1769957203607,38.50696487,102.3,102.24,4.32263362]
[1769957204032,4.29343956,102.3,102.24,4.32263362]
[1769957204228,14.06902691,102.3,102.24,4.32263362]
[1769957204530,4.27527085,102.33,102.26,4.29357527]
[1769957204531,9.77462251,102.31,102.26,4.29357527]
[1769957204831,4.16094282,102.32,102.26,4.29357527]
[1769957205624,13.93431056,102.32,102.26,4.29357527]
[1769957205830,4.16094282,102.34,102.26,4.29357527]
[1769957206126,4.16094282,102.32,102.24,9.78080588]
[1769957206335,4.16094282,102.31,102.24,14.07438115]
[1769957206523,38.37404154,102.3,102.24,14.07438115]
[1769957206720,38.37404154,102.3,102.24,14.07422327]
[1769957207134,38.37404154,102.3,102.24,4.29357527]
[1769957207334,4.16094282,102.29,102.24,4.29357527]
[1769957207736,4.16094282,102.29,102.24,14.07352751]
[1769957207936,9.77517106,102.3,102.25,4.29357527]
[1769957208137,13.93611388,102.3,102.25,4.29357527]
[1769957208919,13.93611388,102.3,102.25,14.07339348]
[1769957209642,9.77468743,102.31,102.26,4.29357527]
[1769957210239,34.21022647,102.31,102.26,4.29357527]
[1769957210636,38.37116929,102.31,102.26,4.29357527]
[1769957210823,4.16094282,102.3,102.26,4.29357527]
[1769957211140,9.77612669,102.29,102.24,14.07445165]
[1769957211640,9.77563987,102.3,102.25,4.29357527]
[1769957212346,31.30094282,102.33,102.25,4.29357527]
[1769957212526,13.93472869,102.32,102.25,4.29357527]
[1769957213244,38.36787958,102.32,102.27,4.29357527]
[1769957213742,28.59038838,102.34,102.27,4.29357527]
[1769957213943,4.16094282,102.36,102.27,4.29357527]
[1769957214145,38.35433642,102.36,102.27,4.29357527]
[1769957214944,4.16094282,102.35,102.27,4.29357527]
[1769957215146,9.7713504,102.34,102.29,4.29357527]
[1769957216365,13.93151012,102.35,102.29,4.29357527]
[1769957216927,4.16094282,102.35,102.29,4.29357527]
[1769957217234,10.30612632,102.39,102.31,4.29357527]
[1769957217424,20.07317317,102.39,102.31,4.29357527]
[1769957218242,6.1451835,102.39,102.31,4.29357527]
[1769957218448,4.16094282,102.35,102.28,14.07011001]